[Event "Titled Tuesday Blitz January 03 Late 2023"]
[White "Torres Dominguez, David"]
[Black "Zomorrodian, Eilia"]
[WhiteFideId "2220857"]
[BlackFideId "12551805"]
[WhiteElo "1994"]
[BlackElo "2109"]
[Result "0-1"]
[Round "02"]
[TimeControl "180+2"]
[Date "2023.01.03"]
[WhiteClock "0:00:15"]
[BlackClock "0:00:28"]

1. e4 {[%clk 0:03:00]}  c5 {[%clk 0:02:58]} 2. Nc3 {[%clk 0:02:59]}  a6 {[%clk 0:02:58]} 3. f4 {[%clk 0:02:57]}  b5 {[%clk 0:02:57]} 4. d3 {[%clk 0:02:56]}  Bb7 {[%clk 0:02:57]} 5. Nf3 {[%clk 0:02:55]}  e6 {[%clk 0:02:58]} 6. Be2 {[%clk 0:02:55]}  d6 {[%clk 0:02:59]} 7. O-O {[%clk 0:02:54]}  Nf6 {[%clk 0:02:59]} 8. Qe1 {[%clk 0:02:52]}  Nbd7 {[%clk 0:02:59]} 9. a4 {[%clk 0:02:51]}  b4 {[%clk 0:02:58]} 10. Nd1 {[%clk 0:02:51]}  Be7 {[%clk 0:02:59]} 11. Ne3 {[%clk 0:02:51]}  O-O {[%clk 0:02:59]} 12. Bd2 {[%clk 0:02:44]}  Qc7 {[%clk 0:02:56]} 13. b3 {[%clk 0:02:44]}  Rfe8 {[%clk 0:02:55]} 14. Qg3 {[%clk 0:02:43]}  Bf8 {[%clk 0:02:51]} 15. Rae1 {[%clk 0:02:37]}  g6 {[%clk 0:02:46]} 16. Ng5 {[%clk 0:02:29]}  Bg7 {[%clk 0:02:45]} 17. Bd1 {[%clk 0:02:19]}  h6 {[%clk 0:02:34]} 18. Nh3 {[%clk 0:02:17]}  Bxe4 {[%clk 0:02:22]} 19. Nc4 {[%clk 0:01:51]}  Bb7 {[%clk 0:02:13]} 20. f5 {[%clk 0:01:47]}  exf5 {[%clk 0:02:10]} 21. Nxd6 {[%clk 0:01:42]}  Rxe1 {[%clk 0:02:02]} 22. Rxe1 {[%clk 0:01:38]}  Nd5 {[%clk 0:01:55]} 23. Nxb7 {[%clk 0:01:31]}  Qxb7 {[%clk 0:01:56]} 24. Bf3 {[%clk 0:01:30]}  N7f6 {[%clk 0:01:56]} 25. Nf4 {[%clk 0:01:27]}  Qd7 {[%clk 0:01:55]} 26. Re5 {[%clk 0:01:21]}  Nxf4 {[%clk 0:01:45]} 27. Bxf4 {[%clk 0:01:05]}  Re8 {[%clk 0:01:39]} 28. Rxe8+ {[%clk 0:01:05]}  Qxe8 {[%clk 0:01:39]} 29. h3 {[%clk 0:01:05]}  g5 {[%clk 0:01:33]} 30. Bd6 {[%clk 0:01:01]}  Qe3+ {[%clk 0:01:09]} 31. Qf2 {[%clk 0:00:59]}  Qc1+ {[%clk 0:01:09]} 32. Kh2 {[%clk 0:00:59]}  g4 {[%clk 0:01:04]} 33. hxg4 {[%clk 0:00:56]}  fxg4 {[%clk 0:01:05]} 34. Bb7 {[%clk 0:00:51]}  Nh5 {[%clk 0:00:39]} 35. Bd5 {[%clk 0:00:50]}  Nf6 {[%clk 0:00:32]} 36. Bc4 {[%clk 0:00:50]}  h5 {[%clk 0:00:30]} 37. Be5 {[%clk 0:00:49]}  g3+ {[%clk 0:00:27]} 38. Kxg3 {[%clk 0:00:36]}  Qg5+ {[%clk 0:00:27]} 39. Kf3 {[%clk 0:00:27]}  Qxe5 {[%clk 0:00:27]} 40. Qe3 {[%clk 0:00:21]}  Qf5+ {[%clk 0:00:27]} 41. Ke2 {[%clk 0:00:21]}  Ng4 {[%clk 0:00:27]} 42. Qe8+ {[%clk 0:00:17]}  Bf8 {[%clk 0:00:27]} 43. Qe4 {[%clk 0:00:16]}  Qf2+ {[%clk 0:00:27]} 44. Kd1 {[%clk 0:00:15]}  Ne3+ {[%clk 0:00:28]} 0-1


[Site "https://www.chess.com"]

[Event "Titled Tuesday Blitz January 03 Late 2023"]
[White "Silva, Miguel Antonio Neto"]
[Black "Coelho, Ramyres Santana"]
[WhiteFideId "1911929"]
[BlackFideId "2120690"]
[WhiteElo "2204"]
[BlackElo "1981"]
[Result "1-0"]
[Round "02"]
[TimeControl "180+2"]
[Date "2023.01.03"]
[WhiteClock "0:00:19"]
[BlackClock "0:00:19"]

1. Nf3 {[%clk 0:03:00]}  c5 {[%clk 0:02:59]} 2. e4 {[%clk 0:02:58]}  Nc6 {[%clk 0:03:00]} 3. Bb5 {[%clk 0:02:58]}  Qb6 {[%clk 0:02:59]} 4. a4 {[%clk 0:02:55]}  a6 {[%clk 0:02:59]} 5. Bc4 {[%clk 0:02:55]}  e6 {[%clk 0:02:59]} 6. O-O {[%clk 0:02:54]}  Nf6 {[%clk 0:02:58]} 7. Nc3 {[%clk 0:02:51]}  d6 {[%clk 0:02:55]} 8. d3 {[%clk 0:02:46]}  Be7 {[%clk 0:02:55]} 9. Re1 {[%clk 0:02:44]}  O-O {[%clk 0:02:55]} 10. h3 {[%clk 0:02:28]}  Ne5 {[%clk 0:02:54]} 11. Nxe5 {[%clk 0:02:22]}  dxe5 {[%clk 0:02:55]} 12. a5 {[%clk 0:02:22]}  Qc7 {[%clk 0:02:53]} 13. Be3 {[%clk 0:02:19]}  Rd8 {[%clk 0:02:44]} 14. Na4 {[%clk 0:02:17]}  Nd7 {[%clk 0:02:35]} 15. Qd2 {[%clk 0:02:16]}  b6 {[%clk 0:02:31]} 16. axb6 {[%clk 0:02:14]}  Nxb6 {[%clk 0:02:32]} 17. Qa5 {[%clk 0:02:07]}  Rb8 {[%clk 0:02:20]} 18. Nxc5 {[%clk 0:01:54]}  Qc6 {[%clk 0:02:02]} 19. Bb3 {[%clk 0:01:44]}  Rd4 {[%clk 0:01:47]} 20. Bxd4 {[%clk 0:01:34]}  exd4 {[%clk 0:01:48]} 21. Na4 {[%clk 0:01:23]}  Nxa4 {[%clk 0:01:33]} 22. Qxa4 {[%clk 0:01:22]}  Qd6 {[%clk 0:01:24]} 23. e5 {[%clk 0:00:46]}  Qc7 {[%clk 0:01:20]} 24. Qxd4 {[%clk 0:00:40]}  Bc5 {[%clk 0:01:18]} 25. Qf4 {[%clk 0:00:39]}  Bb7 {[%clk 0:01:18]} 26. d4 {[%clk 0:00:31]}  Be7 {[%clk 0:01:10]} 27. Red1 {[%clk 0:00:31]}  Qc6 {[%clk 0:01:10]} 28. d5 {[%clk 0:00:27]}  exd5 {[%clk 0:00:59]} 29. Bxd5 {[%clk 0:00:26]}  Qe8 {[%clk 0:01:00]} 30. Bxb7 {[%clk 0:00:25]}  Rxb7 {[%clk 0:01:00]} 31. Rxa6 {[%clk 0:00:24]}  Rxb2 {[%clk 0:01:00]} 32. Qe4 {[%clk 0:00:23]}  Rb8 {[%clk 0:00:57]} 33. Ra7 {[%clk 0:00:21]}  Bc5 {[%clk 0:00:54]} 34. Rb7 {[%clk 0:00:20]}  Rc8 {[%clk 0:00:50]} 35. Rdd7 {[%clk 0:00:20]}  Ra8 {[%clk 0:00:42]} 36. Rxf7 {[%clk 0:00:19]}  Ra1+ {[%clk 0:00:41]} 37. Kh2 {[%clk 0:00:20]}  Bf8 {[%clk 0:00:37]} 38. Qd5 {[%clk 0:00:20]}  Kh8 {[%clk 0:00:35]} 39. e6 {[%clk 0:00:11]}  Ra6 {[%clk 0:00:18]} 40. e7 {[%clk 0:00:10]}  Bxe7 {[%clk 0:00:14]} 41. Rbxe7 {[%clk 0:00:10]}  Qb8+ {[%clk 0:00:14]} 42. g3 {[%clk 0:00:09]}  Rg6 {[%clk 0:00:13]} 43. Qf3 {[%clk 0:00:07]}  Kg8 {[%clk 0:00:12]} 44. Ra7 {[%clk 0:00:05]}  h5 {[%clk 0:00:11]} 45. Ra8 {[%clk 0:00:03]}  Qxa8 {[%clk 0:00:09]} 46. Qxa8+ {[%clk 0:00:04]}  Kxf7 {[%clk 0:00:10]} 47. Qd5+ {[%clk 0:00:05]}  Kf6 {[%clk 0:00:10]} 48. Qxh5 {[%clk 0:00:06]}  Rg5 {[%clk 0:00:10]} 49. Qf3+ {[%clk 0:00:06]}  Rf5 {[%clk 0:00:10]} 50. Kg2 {[%clk 0:00:07]}  Rxf3 {[%clk 0:00:10]} 51. Kxf3 {[%clk 0:00:08]}  Ke5 {[%clk 0:00:11]} 52. g4 {[%clk 0:00:09]}  Kd4 {[%clk 0:00:11]} 53. Kg3 {[%clk 0:00:10]}  Kc3 {[%clk 0:00:12]} 54. f4 {[%clk 0:00:10]}  Kxc2 {[%clk 0:00:13]} 55. Kh4 {[%clk 0:00:11]}  Kd3 {[%clk 0:00:13]} 56. Kg5 {[%clk 0:00:12]}  Ke4 {[%clk 0:00:14]} 57. f5 {[%clk 0:00:13]}  Ke5 {[%clk 0:00:14]} 58. Kg6 {[%clk 0:00:14]}  Kf4 {[%clk 0:00:14]} 59. g5 {[%clk 0:00:14]}  Kg3 {[%clk 0:00:14]} 60. Kxg7 {[%clk 0:00:14]}  Kxh3 {[%clk 0:00:15]} 61. g6 {[%clk 0:00:14]}  Kg4 {[%clk 0:00:16]} 62. f6 {[%clk 0:00:15]}  Kf5 {[%clk 0:00:17]} 63. f7 {[%clk 0:00:16]}  Ke6 {[%clk 0:00:18]} 64. f8=Q {[%clk 0:00:17]}  Kd7 {[%clk 0:00:18]} 65. Qf6 {[%clk 0:00:17]}  Ke8 {[%clk 0:00:18]} 66. Qf7+ {[%clk 0:00:16]}  Kd8 {[%clk 0:00:18]} 67. Kf6 {[%clk 0:00:17]}  Kc8 {[%clk 0:00:18]} 68. g7 {[%clk 0:00:18]}  Kd8 {[%clk 0:00:19]} 69. g8=Q# {[%clk 0:00:19]} 1-0


[Site "https://www.chess.com"]

[Event "Titled Tuesday Blitz January 03 Late 2023"]
[White "Jimenez Almeida, Luis David"]
[Black "Lock, Gavin R"]
[WhiteFideId "22242244"]
[BlackFideId "408646"]
[WhiteElo "2242"]
[BlackElo "2083"]
[Result "1-0"]
[Round "02"]
[TimeControl "180+2"]
[Date "2023.01.03"]
[WhiteClock "0:00:49"]
[BlackClock "0:00:05"]

1. e4 {[%clk 0:03:00]}  c5 {[%clk 0:02:58]} 2. Nc3 {[%clk 0:02:59]}  a6 {[%clk 0:02:59]} 3. Nge2 {[%clk 0:02:59]}  b5 {[%clk 0:02:59]} 4. d4 {[%clk 0:02:59]}  cxd4 {[%clk 0:03:00]} 5. Nxd4 {[%clk 0:02:58]}  e6 {[%clk 0:03:00]} 6. Bd3 {[%clk 0:02:57]}  Qb6 {[%clk 0:03:00]} 7. Be3 {[%clk 0:02:57]}  Bc5 {[%clk 0:02:58]} 8. Nce2 {[%clk 0:02:48]}  Nf6 {[%clk 0:02:20]} 9. O-O {[%clk 0:02:47]}  Ng4 {[%clk 0:02:14]} 10. Ng3 {[%clk 0:02:25]}  Nxe3 {[%clk 0:02:04]} 11. fxe3 {[%clk 0:02:25]}  Bxd4 {[%clk 0:01:50]} 12. exd4 {[%clk 0:02:26]}  Qxd4+ {[%clk 0:01:50]} 13. Kh1 {[%clk 0:02:26]}  Nc6 {[%clk 0:01:49]} 14. c3 {[%clk 0:02:24]}  Qe5 {[%clk 0:01:46]} 15. Qg4 {[%clk 0:02:23]}  O-O {[%clk 0:01:40]} 16. a4 {[%clk 0:02:21]}  Bb7 {[%clk 0:01:38]} 17. Nh5 {[%clk 0:02:07]}  b4 {[%clk 0:01:14]} 18. Rf3 {[%clk 0:02:00]}  bxc3 {[%clk 0:01:03]} 19. bxc3 {[%clk 0:02:01]}  Ne7 {[%clk 0:00:58]} 20. Raf1 {[%clk 0:01:52]}  Rac8 {[%clk 0:00:46]} 21. Nf6+ {[%clk 0:01:51]}  Kh8 {[%clk 0:00:43]} 22. Nxd7 {[%clk 0:01:51]}  Qxc3 {[%clk 0:00:29]} 23. Nxf8 {[%clk 0:01:34]}  Rxf8 {[%clk 0:00:30]} 24. Rh3 {[%clk 0:01:35]}  Ng6 {[%clk 0:00:23]} 25. Qh5 {[%clk 0:01:29]}  h6 {[%clk 0:00:23]} 26. Rg3 {[%clk 0:01:22]}  Rd8 {[%clk 0:00:16]} 27. Be2 {[%clk 0:01:11]}  Qd2 {[%clk 0:00:14]} 28. Bf3 {[%clk 0:01:03]}  a5 {[%clk 0:00:13]} 29. Rd1 {[%clk 0:00:56]}  Nf4 {[%clk 0:00:05]} 30. Rxd2 {[%clk 0:00:52]}  Rxd2 {[%clk 0:00:06]} 31. Qg4 {[%clk 0:00:51]}  g5 {[%clk 0:00:05]} 32. h4 {[%clk 0:00:49]} 1-0


[Site "https://www.chess.com"]

[Event "Titled Tuesday Blitz January 03 Late 2023"]
[White "Guo, Josh"]
[Black "Herman, Daniel"]
[WhiteFideId "2682427"]
[BlackFideId "30935008"]
[WhiteElo "2112"]
[BlackElo "1956"]
[Result "0-1"]
[Round "02"]
[TimeControl "180+2"]
[Date "2023.01.03"]
[WhiteClock "0:00:06"]
[BlackClock "0:00:30"]

1. e4 {[%clk 0:03:00]}  g6 {[%clk 0:03:00]} 2. d4 {[%clk 0:03:00]}  Bg7 {[%clk 0:03:00]} 3. Nc3 {[%clk 0:03:00]}  d6 {[%clk 0:03:01]} 4. Nf3 {[%clk 0:03:00]}  Nf6 {[%clk 0:02:59]} 5. Be2 {[%clk 0:02:59]}  O-O {[%clk 0:02:59]} 6. O-O {[%clk 0:02:59]}  e5 {[%clk 0:02:55]} 7. dxe5 {[%clk 0:02:44]}  dxe5 {[%clk 0:02:55]} 8. Qxd8 {[%clk 0:02:45]}  Rxd8 {[%clk 0:02:56]} 9. Bg5 {[%clk 0:02:45]}  Re8 {[%clk 0:02:40]} 10. h3 {[%clk 0:02:24]}  h6 {[%clk 0:02:35]} 11. Bxf6 {[%clk 0:02:21]}  Bxf6 {[%clk 0:02:36]} 12. Bc4 {[%clk 0:02:16]}  c6 {[%clk 0:02:34]} 13. a4 {[%clk 0:02:10]}  a5 {[%clk 0:02:23]} 14. Nd2 {[%clk 0:01:48]}  Na6 {[%clk 0:02:21]} 15. Bxa6 {[%clk 0:01:40]}  Rxa6 {[%clk 0:02:21]} 16. Nc4 {[%clk 0:01:35]}  Be6 {[%clk 0:02:09]} 17. Ne3 {[%clk 0:01:15]}  Raa8 {[%clk 0:02:04]} 18. Rfd1 {[%clk 0:01:12]}  Red8 {[%clk 0:02:02]} 19. Kf1 {[%clk 0:01:04]}  h5 {[%clk 0:01:56]} 20. f3 {[%clk 0:00:52]}  Be7 {[%clk 0:01:52]} 21. Rxd8+ {[%clk 0:00:48]}  Rxd8 {[%clk 0:01:51]} 22. Rd1 {[%clk 0:00:49]}  Rd4 {[%clk 0:01:48]} 23. b3 {[%clk 0:00:42]}  Kf8 {[%clk 0:01:31]} 24. g4 {[%clk 0:00:29]}  h4 {[%clk 0:01:28]} 25. Ne2 {[%clk 0:00:24]}  Rxd1+ {[%clk 0:01:25]} 26. Nxd1 {[%clk 0:00:23]}  f5 {[%clk 0:01:20]} 27. Nec3 {[%clk 0:00:21]}  Bg5 {[%clk 0:01:12]} 28. Ke2 {[%clk 0:00:20]}  Ke7 {[%clk 0:01:07]} 29. Ne3 {[%clk 0:00:19]}  fxg4 {[%clk 0:00:58]} 30. fxg4 {[%clk 0:00:19]}  Bf4 {[%clk 0:00:57]} 31. Kf3 {[%clk 0:00:17]}  Kd6 {[%clk 0:00:55]} 32. Ne2 {[%clk 0:00:14]}  g5 {[%clk 0:00:47]} 33. Nxf4 {[%clk 0:00:13]}  exf4 {[%clk 0:00:48]} 34. Nf5+ {[%clk 0:00:13]}  Ke5 {[%clk 0:00:37]} 35. Ng7 {[%clk 0:00:09]}  Bd7 {[%clk 0:00:34]} 36. Nh5 {[%clk 0:00:06]}  c5 {[%clk 0:00:30]} 0-1


[Site "https://www.chess.com"]

[Event "Titled Tuesday Blitz January 03 Late 2023"]
[White "Adury, Anant"]
[Black "Fiorito, Joaquin"]
[WhiteFideId "30964687"]
[BlackFideId "180173"]
[WhiteElo "2123"]
[BlackElo "2405"]
[Result "0-1"]
[Round "02"]
[TimeControl "180+2"]
[Date "2023.01.03"]
[WhiteClock "0:02:17"]
[BlackClock "0:02:00"]

1. Nf3 {[%clk 0:02:54]}  d5 {[%clk 0:03:00]} 2. c4 {[%clk 0:02:53]}  c6 {[%clk 0:03:00]} 3. e3 {[%clk 0:02:53]}  Nf6 {[%clk 0:03:00]} 4. Nc3 {[%clk 0:02:54]}  e6 {[%clk 0:03:00]} 5. d4 {[%clk 0:02:54]}  Nbd7 {[%clk 0:03:00]} 6. Bd3 {[%clk 0:02:55]}  dxc4 {[%clk 0:03:01]} 7. Bxc4 {[%clk 0:02:55]}  b5 {[%clk 0:03:02]} 8. Bb3 {[%clk 0:02:55]}  Be7 {[%clk 0:03:00]} 9. O-O {[%clk 0:02:56]}  O-O {[%clk 0:03:01]} 10. e4 {[%clk 0:02:56]}  b4 {[%clk 0:02:59]} 11. e5 {[%clk 0:02:57]}  bxc3 {[%clk 0:02:59]} 12. exf6 {[%clk 0:02:57]}  Nxf6 {[%clk 0:02:56]} 13. bxc3 {[%clk 0:02:57]}  c5 {[%clk 0:02:48]} 14. Bf4 {[%clk 0:02:55]}  Bb7 {[%clk 0:02:46]} 15. Rb1 {[%clk 0:02:46]}  Be4 {[%clk 0:02:44]} 16. Bc2 {[%clk 0:02:46]}  Bxc2 {[%clk 0:02:42]} 17. Qxc2 {[%clk 0:02:46]}  cxd4 {[%clk 0:02:37]} 18. cxd4 {[%clk 0:02:47]}  Nd5 {[%clk 0:02:35]} 19. Be3 {[%clk 0:02:46]}  Qa5 {[%clk 0:02:32]} 20. Rfc1 {[%clk 0:02:45]}  h6 {[%clk 0:02:26]} 21. Ne5 {[%clk 0:02:42]}  Bd6 {[%clk 0:02:17]} 22. Nc4 {[%clk 0:02:35]}  Qa6 {[%clk 0:02:17]} 23. Nxd6 {[%clk 0:02:32]}  Qxd6 {[%clk 0:02:17]} 24. Qc6 {[%clk 0:02:32]}  Qa3 {[%clk 0:02:14]} 25. Qc4 {[%clk 0:02:26]}  Nxe3 {[%clk 0:02:12]} 26. fxe3 {[%clk 0:02:25]}  Qxe3+ {[%clk 0:02:13]} 27. Kh1 {[%clk 0:02:26]}  Rad8 {[%clk 0:02:05]} 28. Rd1 {[%clk 0:02:26]}  Rd5 {[%clk 0:02:04]} 29. Rb3 {[%clk 0:02:20]}  Qe4 {[%clk 0:02:02]} 30. Qd3 {[%clk 0:02:20]}  Qxd3 {[%clk 0:02:00]} 31. Rdxd3 {[%clk 0:02:18]}  Rfd8 {[%clk 0:02:01]} 32. g3 {[%clk 0:02:18]}  e5 {[%clk 0:02:01]} 33. Rb7 {[%clk 0:02:17]}  a5 {[%clk 0:02:00]} 0-1


[Site "https://www.chess.com"]

[Event "Titled Tuesday Blitz January 03 Late 2023"]
[White "Bochnicka, Vladimir"]
[Black "qiaohu_henry"]
[WhiteFideId "14943450"]
[WhiteElo "2327"]
[BlackElo "2253"]
[Result "1-0"]
[Round "02"]
[TimeControl "180+2"]
[Date "2023.01.03"]
[WhiteClock "0:00:18"]
[BlackClock "0:00:01"]

1. e4 {[%clk 0:03:00]}  e6 {[%clk 0:03:00]} 2. d4 {[%clk 0:02:59]}  d5 {[%clk 0:03:01]} 3. exd5 {[%clk 0:02:59]}  exd5 {[%clk 0:03:02]} 4. c4 {[%clk 0:02:59]}  Nc6 {[%clk 0:03:00]} 5. Nf3 {[%clk 0:02:52]}  Bb4+ {[%clk 0:02:50]} 6. Nc3 {[%clk 0:02:49]}  Nge7 {[%clk 0:02:50]} 7. Bd3 {[%clk 0:02:45]}  Bg4 {[%clk 0:02:39]} 8. O-O {[%clk 0:02:29]}  Nxd4 {[%clk 0:02:14]} 9. Qa4+ {[%clk 0:02:25]}  Ndc6 {[%clk 0:02:15]} 10. Ne5 {[%clk 0:02:02]}  Bxc3 {[%clk 0:01:59]} 11. Nxg4 {[%clk 0:01:42]}  Bb4 {[%clk 0:01:31]} 12. a3 {[%clk 0:01:40]}  Bd6 {[%clk 0:00:52]} 13. cxd5 {[%clk 0:01:38]}  Nxd5 {[%clk 0:00:52]} 14. Re1+ {[%clk 0:01:38]}  Ne7 {[%clk 0:00:52]} 15. Bg5 {[%clk 0:01:24]}  O-O {[%clk 0:00:51]} 16. Re3 {[%clk 0:00:39]}  Qd7 {[%clk 0:00:42]} 17. Nf6+ {[%clk 0:00:32]}  gxf6 {[%clk 0:00:42]} 18. Bxh7+ {[%clk 0:00:27]}  Kxh7 {[%clk 0:00:41]} 19. Qh4+ {[%clk 0:00:22]}  Kg8 {[%clk 0:00:07]} 20. Bxf6 {[%clk 0:00:21]}  Ng6 {[%clk 0:00:07]} 21. Qh5 {[%clk 0:00:21]}  Rfe8 {[%clk 0:00:02]} 22. Rg3 {[%clk 0:00:18]}  Qf5 {[%clk 0:00:01]} 23. Qh8# {[%clk 0:00:18]} 1-0


[Site "https://www.chess.com"]

[Event "Titled Tuesday Blitz January 03 Late 2023"]
[White "Blanco Acevedo, Cristobal Jose"]
[Black "Sariego Figueredo, Wilfredo"]
[WhiteFideId "3900525"]
[BlackFideId "3500080"]
[WhiteElo "2310"]
[BlackElo "2318"]
[Result "1-0"]
[Round "02"]
[TimeControl "180+2"]
[Date "2023.01.03"]
[WhiteClock "0:01:04"]
[BlackClock "0:00:02"]

1. e4 {[%clk 0:03:00]}  c5 {[%clk 0:02:58]} 2. Nf3 {[%clk 0:02:59]}  a6 {[%clk 0:02:57]} 3. c4 {[%clk 0:02:56]}  Nc6 {[%clk 0:02:56]} 4. d4 {[%clk 0:02:54]}  cxd4 {[%clk 0:02:55]} 5. Nxd4 {[%clk 0:02:55]}  d6 {[%clk 0:02:47]} 6. Nc3 {[%clk 0:02:54]}  Nf6 {[%clk 0:02:46]} 7. Be2 {[%clk 0:02:53]}  e5 {[%clk 0:02:44]} 8. Nc2 {[%clk 0:02:50]}  Be7 {[%clk 0:02:41]} 9. O-O {[%clk 0:02:49]}  Be6 {[%clk 0:02:34]} 10. b3 {[%clk 0:02:49]}  Qc7 {[%clk 0:02:29]} 11. Ba3 {[%clk 0:02:47]}  O-O {[%clk 0:02:26]} 12. Rc1 {[%clk 0:02:44]}  Rfd8 {[%clk 0:02:23]} 13. Nd5 {[%clk 0:02:34]}  Bxd5 {[%clk 0:02:09]} 14. cxd5 {[%clk 0:02:32]}  Na7 {[%clk 0:02:06]} 15. Bd3 {[%clk 0:02:24]}  Nb5 {[%clk 0:01:52]} 16. Bb2 {[%clk 0:02:22]}  Qd7 {[%clk 0:01:40]} 17. a4 {[%clk 0:02:19]}  Nc7 {[%clk 0:01:32]} 18. Ne3 {[%clk 0:02:18]}  b5 {[%clk 0:01:24]} 19. a5 {[%clk 0:02:17]}  Rdc8 {[%clk 0:01:16]} 20. b4 {[%clk 0:02:17]}  Nce8 {[%clk 0:01:10]} 21. Qe2 {[%clk 0:02:10]}  Bf8 {[%clk 0:00:59]} 22. Rce1 {[%clk 0:02:05]}  Rc7 {[%clk 0:00:52]} 23. f4 {[%clk 0:02:04]}  exf4 {[%clk 0:00:33]} 24. Rxf4 {[%clk 0:02:03]}  Rac8 {[%clk 0:00:30]} 25. Ref1 {[%clk 0:02:03]}  Qd8 {[%clk 0:00:19]} 26. g4 {[%clk 0:02:02]}  h6 {[%clk 0:00:17]} 27. h4 {[%clk 0:01:53]}  Nh7 {[%clk 0:00:14]} 28. Qf2 {[%clk 0:01:50]}  Be7 {[%clk 0:00:12]} 29. Rxf7 {[%clk 0:01:46]}  Bxh4 {[%clk 0:00:12]} 30. Rf8+ {[%clk 0:01:47]}  Nxf8 {[%clk 0:00:11]} 31. Qxf8+ {[%clk 0:01:47]}  Kh7 {[%clk 0:00:11]} 32. e5+ {[%clk 0:01:42]}  g6 {[%clk 0:00:12]} 33. e6 {[%clk 0:01:36]}  Bf6 {[%clk 0:00:11]} 34. Bxf6 {[%clk 0:01:17]}  Nxf6 {[%clk 0:00:12]} 35. Qxf6 {[%clk 0:01:16]}  Qxf6 {[%clk 0:00:10]} 36. Rxf6 {[%clk 0:01:16]}  Rc3 {[%clk 0:00:10]} 37. Rf7+ {[%clk 0:01:15]}  Kg8 {[%clk 0:00:09]} 38. Bxg6 {[%clk 0:01:15]}  Rxe3 {[%clk 0:00:09]} 39. Kf2 {[%clk 0:01:13]}  Re5 {[%clk 0:00:08]} 40. Bh7+ {[%clk 0:01:10]}  Kh8 {[%clk 0:00:07]} 41. e7 {[%clk 0:01:09]}  Re8 {[%clk 0:00:03]} 42. Rf8+ {[%clk 0:01:06]}  Kxh7 {[%clk 0:00:04]} 43. Rxe8 {[%clk 0:01:06]}  Kg7 {[%clk 0:00:04]} 44. Rd8 {[%clk 0:01:06]}  Rxe7 {[%clk 0:00:03]} 45. Rxd6 {[%clk 0:01:06]}  Ra7 {[%clk 0:00:03]} 46. Rb6 {[%clk 0:01:05]}  Kf7 {[%clk 0:00:03]} 47. Ke3 {[%clk 0:01:04]}  Kg7 {[%clk 0:00:02]} 48. Kd4 {[%clk 0:01:04]}  h5 {[%clk 0:00:01]} 49. gxh5 {[%clk 0:01:03]}  Kh7 {[%clk 0:00:02]} 50. h6 {[%clk 0:01:03]}  Kh8 {[%clk 0:00:02]} 51. Kc5 {[%clk 0:01:03]}  Kh7 {[%clk 0:00:02]} 52. Rc6 {[%clk 0:01:03]}  Rb7 {[%clk 0:00:02]} 53. d6 {[%clk 0:01:03]}  Rc7 {[%clk 0:00:03]} 54. Rxc7+ {[%clk 0:01:03]}  Kxh6 {[%clk 0:00:02]} 55. d7 {[%clk 0:01:04]} 1-0


[Site "https://www.chess.com"]

[Event "Titled Tuesday Blitz January 03 Late 2023"]
[White "Martins, Bruno Andre Leite"]
[Black "Papp, Petra"]
[WhiteFideId "1942255"]
[BlackFideId "739049"]
[WhiteElo "2348"]
[BlackElo "2343"]
[Result "1-0"]
[Round "02"]
[TimeControl "180+2"]
[Date "2023.01.03"]
[WhiteClock "0:00:55"]
[BlackClock "0:00:07"]

1. e4 {[%clk 0:03:00]}  c5 {[%clk 0:02:59]} 2. Ne2 {[%clk 0:02:59]}  d6 {[%clk 0:02:57]} 3. Nbc3 {[%clk 0:03:00]}  Nf6 {[%clk 0:02:54]} 4. d4 {[%clk 0:03:00]}  cxd4 {[%clk 0:02:54]} 5. Nxd4 {[%clk 0:03:01]}  a6 {[%clk 0:02:53]} 6. Bd3 {[%clk 0:03:01]}  e5 {[%clk 0:02:52]} 7. Nf5 {[%clk 0:03:02]}  Bxf5 {[%clk 0:02:48]} 8. exf5 {[%clk 0:03:03]}  Nc6 {[%clk 0:02:48]} 9. Bg5 {[%clk 0:02:58]}  Be7 {[%clk 0:02:47]} 10. Bc4 {[%clk 0:02:57]}  O-O {[%clk 0:02:43]} 11. O-O {[%clk 0:02:57]}  Rc8 {[%clk 0:02:40]} 12. Bb3 {[%clk 0:02:55]}  Nd4 {[%clk 0:02:37]} 13. Qd3 {[%clk 0:02:44]}  Nd7 {[%clk 0:02:20]} 14. Bxe7 {[%clk 0:02:40]}  Qxe7 {[%clk 0:02:21]} 15. Nd5 {[%clk 0:02:40]}  Qg5 {[%clk 0:02:15]} 16. c3 {[%clk 0:02:37]}  Nc5 {[%clk 0:02:10]} 17. Qe3 {[%clk 0:02:12]}  Qxe3 {[%clk 0:01:50]} 18. fxe3 {[%clk 0:02:13]}  Ncxb3 {[%clk 0:01:13]} 19. axb3 {[%clk 0:02:14]}  Nxb3 {[%clk 0:01:04]} 20. Ra3 {[%clk 0:01:27]}  Nd2 {[%clk 0:01:03]} 21. Rd1 {[%clk 0:01:25]}  Nc4 {[%clk 0:01:04]} 22. Ne7+ {[%clk 0:01:25]}  Kh8 {[%clk 0:01:04]} 23. Nxc8 {[%clk 0:01:26]}  Nxa3 {[%clk 0:01:04]} 24. Nxd6 {[%clk 0:01:25]}  Nc2 {[%clk 0:00:41]} 25. Kf2 {[%clk 0:01:10]}  Kg8 {[%clk 0:00:33]} 26. Rc1 {[%clk 0:01:05]}  Rd8 {[%clk 0:00:25]} 27. Ne4 {[%clk 0:01:05]}  Nxe3 {[%clk 0:00:14]} 28. Kxe3 {[%clk 0:01:06]}  f6 {[%clk 0:00:14]} 29. c4 {[%clk 0:01:03]}  Kf7 {[%clk 0:00:13]} 30. c5 {[%clk 0:01:03]}  Ke7 {[%clk 0:00:13]} 31. Nd6 {[%clk 0:01:03]}  Rd7 {[%clk 0:00:13]} 32. b4 {[%clk 0:01:02]}  Rc7 {[%clk 0:00:13]} 33. Nc4 {[%clk 0:01:00]}  Kd7 {[%clk 0:00:11]} 34. Rd1+ {[%clk 0:00:57]}  Kc6 {[%clk 0:00:11]} 35. Na3 {[%clk 0:00:55]}  b6 {[%clk 0:00:07]} 36. Rd6+ {[%clk 0:00:54]}  Kb7 {[%clk 0:00:06]} 37. Rxb6+ {[%clk 0:00:55]}  Kc8 {[%clk 0:00:07]} 38. Rxa6 {[%clk 0:00:55]}  Rd7 {[%clk 0:00:07]} 39. Rc6+ {[%clk 0:00:54]}  Kd8 {[%clk 0:00:07]} 40. Rd6 {[%clk 0:00:54]}  Kc7 {[%clk 0:00:06]} 41. Rxd7+ {[%clk 0:00:54]}  Kxd7 {[%clk 0:00:07]} 42. b5 {[%clk 0:00:55]} 1-0


[Site "https://www.chess.com"]